bitfinex-derivatives/quotes_ETHF0:USTF0_20240930
["timestamp","ask_amount","ask_price","bid_price","bid_amount"]
[1727739659524,3.59426,2588.0,2587.2,0.3741]
[1727739659731,3.2078,2588.0,2587.3,0.38656]
[1727739659937,3.2078,2588.0,2587.5,0.38652]
[1727739660234,3.2078,2588.0,2587.6,0.38651]
[1727739660729,3.2078,2587.7,2587.2,0.3741]
[1727739660929,0.3831,2588.1,2587.2,0.3741]
[1727739660930,0.38646,2588.0,2587.5,0.38652]
[1727739661133,3.5909,2588.1,2587.2,0.3741]
[1727739661329,3.97734,2588.1,2587.6,0.3865]
[1727739661529,3.97734,2588.1,2587.5,0.38652]
[1727739661530,3.97735,2588.1,2587.5,0.38652]
[1727739661733,3.97735,2588.1,2587.3,0.38656]
[1727739661937,0.38646,2588.0,2587.5,0.38652]
[1727739663037,3.5909,2588.1,2587.2,0.3741]
[1727739663236,3.5909,2588.1,2587.3,3.2078]
[1727739663439,0.38645,2588.0,2587.5,0.38652]
[1727739663933,3.97735,2588.1,2587.6,0.38651]
[1727739664237,3.5909,2588.1,2587.6,0.38651]
[1727739664732,3.5909,2588.1,2587.2,0.3741]
[1727739664928,3.97735,2588.1,2587.6,0.38651]
[1727739665127,3.97735,2588.1,2587.7,0.38649]
[1727739665329,3.9597,2588.4,2587.6,4.17406]
[1727739665537,3.9597,2588.4,2587.9,2.71]
[1727739665729,3.9597,2588.4,2587.8,4.21840903]
[1727739665730,3.09641,2588.3,2587.8,0.38647]
[1727739665930,2.71,2588.1,2587.7,0.3917]
[1727739666131,3.09644,2588.1,2587.6,0.3865]
[1727739666430,3.09644,2588.1,2587.3,7.29788628]
[1727739666431,5.9178,2588.1,2587.3,6.6826]
[1727739666628,2.71,2587.9,2587.3,6.6826]
[1727739666825,2.71,2587.9,2587.5,0.38652]
[1727739667024,2.71,2587.9,2587.5,0.38651]
[1727739667233,0.7618,2587.8,2587.5,0.38651]
[1727739667423,0.7618,2587.8,2587.4,0.38654]
[1727739667828,0.7618,2587.8,2587.5,0.38652]
[1727739668428,0.7618,2587.8,2587.3,0.3917]
[1727739668835,0.3865,2587.7,2587.3,0.3917]
[1727739669030,7.06609,2587.8,2587.3,0.77825]
[1727739669432,7.06609,2587.8,2587.3,0.3917]
[1727739669634,3.9696,2587.8,2587.3,0.3917]
[1727739670334,3.9696,2587.8,2587.5,0.38652]
[1727739670634,2.71,2587.6,2586.9,1.00698628]
[1727739670833,2.71,2587.3,2587.0,0.38659]
[1727739671037,2.71,2587.3,2587.1,0.38658]
[1727739671339,5.9178,2587.2,2586.7,0.76813711]
[1727739671540,2.71,2586.9,2586.7,0.00493711]
[1727739672138,0.3777,2587.1,2586.7,0.00493711]
[1727739672440,5.9178,2587.5,2586.8,3.2078]
[1727739672637,5.9178,2587.5,2586.7,2.71493711]
[1727739672839,5.9178,2587.5,2586.8,3.6026]
[1727739673040,5.9178,2587.5,2586.9,0.38661]
[1727739673245,0.7628,2587.6,2586.7,0.00493711]
[1727739673246,2.71,2587.1,2586.7,0.00493711]
[1727739673438,3.2078,2586.8,2586.1,2.00789911]
[1727739673635,0.3851,2587.0,2586.2,0.738]
[1727739673936,3.2078,2587.4,2586.9,2.71]
[1727739674241,3.2078,2587.4,2587.0,0.7587]
[1727739674439,2.71,2587.3,2587.0,0.7587]
[1727739674640,5.9178,2587.7,2587.0,0.7587]
[1727739674841,3.2078,2587.7,2587.0,0.7587]
[1727739675040,3.2078,2587.7,2587.1,5.9178]
[1727739675343,2.71,2587.5,2587.0,0.7587]
[1727739675641,3.2078,2587.6,2587.0,0.7587]
[1727739675845,2.71,2587.7,2587.0,3.9665]
[1727739676044,0.3879,2587.8,2587.0,6.6765]
[1727739676550,2.71,2587.4,2587.0,0.7587]
[1727739676745,3.2078,2587.6,2587.0,0.7587]
[1727739676934,3.2078,2587.6,2587.0,3.4687]
[1727739677140,0.3879,2587.8,2587.2,2.71]
[1727739677750,0.3879,2587.8,2587.0,3.4687]
[1727739678343,2.71,2587.5,2587.0,0.7587]
[1727739678572,3.2078,2587.3,2587.0,0.7587]
[1727739678737,3.2078,2587.3,2586.6,6.2959]
[1727739678938,0.3879,2587.8,2587.0,2.71]
[1727739678939,3.2078,2587.7,2587.0,2.71]
[1727739679147,3.2078,2587.7,2587.2,2.71]
[1727739679348,3.2078,2587.7,2587.3,0.7848]
[1727739679644,3.2078,2587.7,2587.3,1.1748]
[1727739680145,3.2078,2587.7,2587.3,0.7848]
[1727739681348,3.2078,2587.7,2586.6,7.01518673]
[1727739681648,5.9178,2587.7,2587.0,0.3822]
[1727739683245,3.2078,2587.7,2587.0,0.3822]
[1727739684050,0.3714,2587.6,2587.0,0.3822]
[1727739684238,0.3725,2587.5,2587.0,0.3822]
[1727739685144,5.9178,2587.1,2586.4,3.2078]
[1727739685348,3.8648,2587.4,2586.4,3.2078]
[1727739685349,3.2078,2587.4,2586.6,3.09666]
[1727739685654,3.2078,2587.4,2586.3,0.8037]
[1727739685655,0.3725,2587.5,2586.8,2.71]
[1727739685860,0.3725,2587.5,2587.0,3.2078]
[1727739686150,2.71,2587.4,2586.9,1.1799]
[1727739686346,2.71,2587.4,2586.9,0.7912]
[1727739686541,5.9178,2587.4,2586.9,0.7912]
[1727739686939,5.9178,2587.4,2586.4,6.2857]
[1727739687138,5.9178,2587.4,2586.5,1.14647]
[1727739687348,2.71,2587.2,2586.5,0.7598]
[1727739687751,3.5876,2587.1,2586.5,0.7598]
[1727739688243,6.2976,2587.1,2586.3,3.59449]
[1727739688443,6.2976,2587.1,2586.4,0.3725]
[1727739688750,3.59444,2586.8,2586.1,0.3873]
[1727739688945,3.2078,2587.2,2586.4,0.38668]
[1727739689144,3.47437,2587.3,2586.5,0.367]
[1727739689344,2.71,2587.1,2586.5,0.367]
[1727739690451,3.09659,2587.1,2586.5,0.367]
[1727739690643,3.2078,2587.2,2586.1,0.3873]
[1727739690644,3.09667,2586.6,2586.1,0.3873]
[1727739690845,0.3778,2586.5,2586.1,0.3873]
[1727739691045,0.3826,2586.7,2586.2,0.38672]
[1727739691250,0.3826,2586.7,2586.2,0.38671]
[1727739691457,0.3826,2586.7,2586.3,0.38671]
[1727739691649,0.3826,2586.7,2586.3,0.3867]
[1727739691850,0.3826,2586.7,2586.4,0.38668]
[1727739692357,0.3826,2586.7,2586.4,0.38669]
[1727739692548,3.59439,2587.1,2586.5,3.8664]
[1727739692549,3.2078,2587.1,2586.5,3.8664]
[1727739692754,0.7453,2587.4,2587.0,0.38659]
[1727739692947,5.9178,2587.7,2587.2,0.38657]
[1727739693154,6.6631,2587.7,2587.0,0.7802]
[1727739693749,3.9531,2587.7,2587.1,2.71]
[1727739693943,3.9531,2587.7,2587.2,0.3898]
[1727739693944,4.33961,2587.7,2587.2,0.3898]
[1727739694260,0.38652,2587.6,2587.2,0.3898]
[1727739694557,6.6631,2587.7,2587.0,0.7802]
[1727739694761,6.6631,2587.7,2587.0,1.16679]
[1727739694962,6.6631,2587.7,2587.0,0.7802]
[1727739695153,0.38653,2587.5,2587.0,0.7802]
[1727739695459,0.38657,2587.3,2586.6,0.38666]
[1727739695655,3.99045,2587.4,2586.7,3.09664]
[1727739696147,3.6039,2587.4,2586.7,2.71]
[1727739696343,3.2078,2586.9,2586.2,1.00698628]
[1727739696547,3.59443,2586.9,2586.2,0.76482]
[1727739696758,0.7787,2586.8,2586.2,0.76481]
[1727739697154,0.7787,2586.8,2586.2,0.3781]
[1727739697350,0.38665,2586.7,2586.1,0.3853]
[1727739697556,0.3961,2586.7,2586.1,0.3853]
[1727739697755,0.38666,2586.6,2586.1,0.3853]
[1727739698157,0.3961,2586.7,2586.1,0.77203]
[1727739698363,0.38667,2586.6,2586.1,0.3853]
[1727739698560,0.38667,2586.6,2586.0,0.38675]
[1727739699154,2.71,2586.5,2585.9,3.5859]
[1727739699365,0.7787,2586.8,2586.2,3.2078]
[1727739699560,0.7787,2586.8,2586.3,0.3867]
[1727739700156,0.7787,2586.8,2586.5,0.38667]
[1727739700360,0.7787,2586.8,2586.2,3.2078]
[1727739700664,0.7787,2586.8,2586.5,0.38667]
[1727739700865,0.7787,2586.8,2586.3,0.3665]
[1727739701073,0.402,2586.8,2586.7,0.38665]
[1727739701258,0.402,2586.8,2586.3,0.3665]
[1727739701259,2.71,2587.1,2586.6,0.38665]
[1727739701457,2.71,2587.1,2586.5,3.2078]
[1727739701656,2.71,2587.1,2586.5,3.96966]
[1727739701858,2.71,2586.7,2586.5,3.583]
[1727739702161,2.71,2586.7,2586.5,0.76188]
[1727739702655,2.71,2586.9,2586.5,0.3752]
[1727739703052,2.71,2586.7,2586.3,0.3665]
[1727739703253,2.71,2586.7,2586.1,1.00698628]
[1727739703254,2.71,2586.5,2586.1,0.3752]
[1727739703658,2.71,2586.5,2586.2,0.38672]
[1727739704158,2.71,2586.5,2586.2,0.38671]
[1727739704361,2.71,2586.3,2585.8,1.00698628]
[1727739704656,2.71,2586.3,2585.6,4.70318673]
[1727739704657,2.71,2585.9,2585.6,0.3868]
[1727739704965,2.71,2585.9,2585.3,4.58278628]
[1727739705256,2.71,2585.9,2585.7,0.38679]
[1727739706060,2.71,2585.9,2585.3,3.5758]
[1727739706355,0.7468,2586.1,2585.7,0.3868]
[1727739706356,2.71,2585.8,2585.7,0.3868]
[1727739706554,3.4568,2586.1,2585.7,0.3868]
[1727739707565,3.4568,2586.1,2585.5,3.2078]
[1727739707761,3.4568,2586.1,2585.7,0.38679]
[1727739708260,2.71,2585.9,2585.6,0.3868]
[1727739708454,2.71,2585.9,2585.5,3.2078]
[1727739708652,2.71,2585.9,2585.3,1.1696]
[1727739708857,2.71,2585.9,2585.7,0.38679]
[1727739709462,2.71,2585.9,2585.3,1.1696]
[1727739709463,0.3868,2585.7,2585.3,0.38685]
[1727739709661,0.3868,2585.7,2585.2,3.2078]
[1727739709662,2.71,2585.4,2585.2,3.2078]
[1727739709958,2.71,2585.4,2584.7,1.86258673]
[1727739709959,3.4842,2585.3,2584.7,0.96737]
[1727739710165,3.4842,2585.3,2584.9,0.75411]
[1727739710666,2.71,2585.0,2584.9,0.3672]
[1727739710855,2.71,2585.0,2584.9,0.7541]
[1727739711256,2.71,2585.0,2584.8,0.7524]
[1727739711456,2.71,2585.0,2584.8,1.13932]
[1727739711657,2.71,2585.0,2584.6,3.2078]
[1727739711972,2.71,2585.0,2584.2,3.59481]
[1727739711973,6.30474,2584.8,2584.2,3.59481]
[1727739712266,2.71,2584.3,2583.9,0.38706]
[1727739712470,0.38698,2584.5,2583.4,2.00789911]
[1727739712471,2.71,2584.0,2583.4,3.2078]
[1727739712660,2.71,2584.0,2583.8,0.38707]
[1727739713163,2.71,2584.0,2583.4,3.2078]
[1727739713363,2.71,2584.0,2583.4,3.59493]
[1727739713364,0.3749,2583.9,2583.4,3.59493]
[1727739713564,0.3749,2583.9,2583.4,3.2078]
[1727739713565,3.2078,2583.8,2583.4,3.2078]
[1727739713775,3.2078,2583.5,2583.0,0.38719]
[1727739713959,3.2078,2583.5,2582.8,0.3969]
[1727739714463,3.2078,2583.2,2582.7,0.38724]
[1727739714662,3.2078,2583.2,2582.8,0.38723]
[1727739714865,3.2078,2583.2,2582.7,0.38724]
[1727739715167,3.2078,2583.2,2581.9,0.104]
[1727739715168,0.38723,2582.8,2581.9,3.59516]
[1727739715361,3.8712,2583.1,2581.6,0.104]
[1727739715362,3.2078,2582.6,2581.8,0.77147]
[1727739715556,3.2078,2582.0,2581.3,3.2978]
[1727739715761,3.2078,2582.0,2581.9,0.38736]
[1727739716075,3.35,2582.8,2581.9,3.2078]
[1727739716268,3.35,2582.8,2582.0,0.7694]
[1727739716470,3.35,2582.4,2581.9,5.03898458]
[1727739716669,3.35,2582.4,2581.9,0.38735]
[1727739716865,3.35,2582.4,2582.0,0.38735]
[1727739717168,3.35,2582.4,2581.9,3.2078]
[1727739717361,3.2078,2582.5,2581.9,3.2078]
[1727739717567,3.35,2582.7,2582.2,3.59511]
[1727739717762,6.5578,2582.7,2582.0,5.12028689]
[1727739717963,6.5578,2582.7,2581.6,3.2078]
[1727739717964,3.35,2582.4,2581.6,3.2078]
[1727739718264,3.2078,2583.0,2582.4,0.38728]
[1727739718468,3.2078,2583.0,2582.2,3.2078]
[1727739718861,3.2078,2583.0,2582.5,0.38727]
[1727739719061,3.2078,2583.0,2582.2,3.2078]
[1727739719266,3.7288,2583.4,2581.8,4.31845]
[1727739719267,3.7288,2583.4,2583.0,0.3872]
[1727739719468,3.35,2583.4,2583.0,0.3872]
[1727739719773,3.35,2583.4,2582.8,3.2078]
[1727739720373,0.8018,2583.8,2582.5,0.38726]
[1727739720374,3.35,2583.1,2582.5,0.38726]
[1727739720664,3.35,2583.1,2582.7,0.38724]
[1727739720870,3.35,2583.1,2582.4,3.59508]
[1727739721062,3.35,2583.1,2582.4,3.2078]
[1727739721063,3.35,2582.8,2582.4,3.2078]
[1727739721861,3.7506,2583.0,2582.5,0.38727]
[1727739722070,3.7506,2583.0,2582.4,3.2078]
[1727739722369,3.35,2582.5,2582.4,3.2078]
[1727739722961,7.222,2582.5,2581.8,0.7806]
[1727739723159,0.4006,2583.0,2581.2,3.2078]
[1727739723160,3.35,2582.1,2581.2,3.2078]
[1727739723362,3.35,2582.1,2581.8,0.38738]
[1727739723560,3.2078,2582.3,2581.8,0.38737]
[1727739723769,0.38727,2582.6,2582.0,0.38735]
[1727739723770,3.35,2582.6,2582.0,0.38735]
[1727739723967,3.2078,2582.5,2582.0,0.38735]
[1727739724273,3.35,2582.3,2581.5,4.11425802]
[1727739724569,3.35,2582.3,2581.5,3.2078]
[1727739724873,3.35,2582.3,2581.8,0.38737]
[1727739725372,3.59508,2582.5,2581.5,3.2078]
[1727739725373,3.2078,2582.5,2581.5,3.2078]
[1727739725676,0.96808,2582.9,2581.6,0.38741]
[1727739725677,3.35,2581.7,2581.6,0.38741]
[1727739725878,3.35,2582.0,2581.5,3.2078]
[1727739726074,3.35,2582.3,2581.9,0.38736]
[1727739726369,3.2078,2582.5,2581.8,3.2078]
[1727739726576,3.2078,2582.5,2582.1,0.38733]
[1727739726976,3.35,2582.6,2582.3,0.3873]
[1727739727280,3.35,2582.6,2581.9,4.54974335]
[1727739727281,3.35,2582.6,2582.1,3.2078]
[1727739727469,3.35,2582.6,2582.3,0.3873]
[1727739727670,3.35,2582.6,2582.4,0.38728]
[1727739727971,3.35,2582.6,2582.1,3.2078]
[1727739728479,3.35,2582.6,2582.2,0.38731]
[1727739728674,3.35,2582.6,2582.0,0.3698]
[1727739728675,3.35,2582.4,2582.0,0.38733]
[1727739729069,3.35,2582.4,2581.9,0.3761]
[1727739729272,3.73729,2582.4,2581.8,3.59517]
[1727739729575,0.38736,2582.0,2581.5,3.2078]
[1727739729781,3.35,2581.8,2580.9,3.6089]
[1727739729980,3.35,2581.8,2580.5,3.2078]
[1727739729981,3.35,2581.0,2580.5,3.2078]
[1727739730279,3.35,2580.7,2580.3,0.3792]
[1727739730576,3.2078,2581.2,2580.0,0.304]
[1727739730577,6.5578,2580.4,2580.0,0.304]
[1727739730785,3.35,2580.4,2580.3,0.3876]
[1727739731090,3.35,2580.7,2580.3,0.3876]
[1727739731379,3.35,2581.0,2580.3,0.3876]
[1727739731582,0.3909,2581.3,2580.2,3.2078]
[1727739731583,3.35,2580.7,2580.2,3.2078]
[1727739731884,3.35,2580.7,2580.3,0.3876]
[1727739732075,3.35,2580.4,2580.1,3.2078]
[1727739732276,3.35,2580.4,2580.0,0.2]
[1727739732873,3.2078,2580.8,2580.3,3.2078]
[1727739733183,3.35,2581.3,2580.4,4.26482716]
[1727739733385,3.35,2581.3,2581.0,0.3875]
[1727739733582,3.35,2581.3,2580.9,0.38751]
[1727739733879,3.35,2581.3,2580.6,3.2078]
[1727739734272,3.35,2581.0,2580.3,3.2078]
[1727739734473,0.3966,2581.5,2580.1,1.1621]
[1727739734474,3.35,2581.3,2581.1,0.38748]
[1727739734668,3.35,2581.3,2580.1,1.1621]
[1727739734669,6.5578,2581.6,2580.9,3.2078]
[1727739734873,6.5578,2581.6,2581.1,0.38748]
[1727739735273,0.381,2581.7,2581.3,0.38745]
[1727739735482,0.381,2581.7,2581.2,3.2078]
[1727739735672,3.35,2581.6,2581.3,0.38745]
[1727739736271,0.381,2581.7,2581.2,3.2078]
[1727739736580,3.35,2581.9,2581.2,3.2078]
[1727739737082,3.2078,2582.1,2582.0,0.38735]
[1727739737278,4.1039,2582.5,2581.5,3.2078]
[1727739737279,4.1039,2582.5,2582.1,0.38733]
[1727739737779,3.731,2582.5,2582.2,0.38731]
[1727739737983,0.381,2582.5,2582.1,3.2078]
[1727739738179,3.35,2582.2,2581.8,3.2078]
[1727739738602,3.35,2581.9,2581.4,3.2078]
[1727739738780,3.35,2581.9,2581.2,0.3907]
[1727739738982,3.35,2581.9,2581.5,0.38741]
[1727739739580,3.35,2581.9,2581.4,3.2078]
[1727739739776,3.35,2581.9,2581.5,0.38742]
[1727739739982,3.35,2581.9,2581.4,3.2078]
[1727739740195,4.0004,2581.8,2581.2,0.38746]
[1727739740481,0.7926,2581.8,2581.4,0.38743]
[1727739740689,0.7926,2581.8,2581.1,4.0044]
[1727739740877,0.7926,2581.8,2581.6,0.38741]
[1727739741079,3.35,2582.2,2581.4,3.2078]
[1727739741275,0.3803,2582.2,2582.1,0.38733]
[1727739741486,6.9404,2582.6,2582.0,3.2078]
[1727739741886,3.7326,2582.6,2582.4,0.38728]
[1727739742776,0.3803,2582.8,2582.3,3.2078]
[1727739742977,0.3803,2582.8,2581.9,3.7521]
[1727739742978,0.3826,2583.4,2583.2,0.38717]
[1727739743187,0.3826,2583.4,2582.9,0.3872]
[1727739743386,0.7629,2583.4,2582.9,0.3872]
[1727739743589,0.7629,2583.4,2582.5,0.3779]
[1727739743590,3.35,2583.2,2582.7,0.38724]
[1727739743787,3.35,2582.9,2582.4,5.48081925]
[1727739743991,0.403,2582.8,2582.4,0.38729]
[1727739744292,0.403,2582.8,2582.6,0.38726]
[1727739744494,0.403,2582.8,2582.1,0.38733]
[1727739744682,0.403,2582.8,2582.0,3.2078]
[1727739744991,0.403,2582.8,2582.4,0.38728]
[1727739745191,0.3997,2582.7,2582.5,0.38727]
[1727739745686,3.872,2582.6,2582.0,3.2078]
[1727739745889,0.78695,2582.7,2582.1,0.38732]
[1727739746190,0.78695,2582.7,2582.3,0.3873]
[1727739746191,3.35,2582.6,2582.3,0.3873]
[1727739746687,3.872,2582.5,2581.7,0.3887]
[1727739746886,6.5578,2582.6,2581.7,0.3887]
[1727739747581,6.5578,2582.6,2582.2,0.38732]
[1727739747987,3.872,2582.5,2582.1,0.38732]
[1727739748193,3.35,2582.6,2582.1,0.38732]
[1727739748382,3.73727,2582.6,2582.1,0.38733]
[1727739748580,3.35,2582.6,2582.1,0.38733]
[1727739748886,3.35,2582.6,2581.9,3.2078]
[1727739749294,0.3997,2582.7,2582.0,0.96838]
[1727739749492,0.3997,2582.7,2582.6,0.38726]
[1727739749790,3.2078,2583.5,2582.6,6.0]
[1727739749981,3.35,2583.7,2583.4,0.38714]
[1727739749982,3.7275,2583.7,2583.4,0.38714]
[1727739750180,7.5979,2583.7,2583.4,0.38714]
[1727739750379,3.35,2583.5,2582.4,0.194]
[1727739750583,3.35,2582.9,2582.7,0.38724]
[1727739750891,3.35,2582.9,2582.6,0.38725]
[1727739751284,4.1145,2582.9,2582.6,0.38725]
[1727739751484,7.9865,2582.9,2582.4,0.38728]
[1727739751689,4.1145,2582.9,2581.9,3.977]
[1727739751885,4.1145,2582.9,2582.3,0.38729]
[1727739752086,4.50172,2582.9,2581.9,3.977]
[1727739752280,4.1145,2582.9,2581.9,3.977]
[1727739752486,4.1145,2582.9,2582.3,0.3873]
[1727739752684,4.1145,2582.9,2582.6,0.38726]
[1727739753191,4.1145,2582.9,2582.2,3.2078]
[1727739753887,3.2078,2583.0,2582.9,0.38721]
[1727739754089,3.2078,2583.6,2583.2,0.38716]
[1727739754287,3.2078,2583.6,2582.6,0.96812]
[1727739754288,3.59492,2583.6,2583.1,0.38718]
[1727739754588,3.2078,2583.3,2582.9,0.38721]
[1727739754784,3.59497,2583.3,2582.7,0.38723]
[1727739754990,3.35,2583.1,2582.5,3.2078]
[1727739755183,1.1555,2583.0,2582.5,3.59507]
[1727739755483,0.7683,2583.0,2582.5,3.59507]
[1727739756282,0.7683,2583.0,2582.5,0.38727]
[1727739756283,3.9761,2583.0,2582.5,0.38727]
[1727739756493,3.9761,2583.0,2582.3,0.3971]
[1727739756688,6.5578,2582.7,2581.9,3.2078]
[1727739757002,3.35,2582.7,2582.3,0.3873]
[1727739757296,40.8,2582.6,2582.1,0.38732]
[1727739757482,40.8,2582.6,2581.9,3.2078]
[1727739757878,40.8,2582.6,2582.1,0.38733]
[1727739758084,40.8,2582.6,2582.2,0.38731]
[1727739758485,41.18727,2582.6,2582.1,0.38733]
[1727739758692,40.8,2582.6,2582.1,0.38732]
[1727739758888,40.8,2582.6,2582.2,0.38731]
[1727739759090,40.8,2582.6,2582.1,0.38733]
[1727739759483,40.8,2582.6,2582.1,0.38732]
[1727739759683,3.2078,2582.5,2582.1,0.38732]
[1727739759890,3.2078,2582.5,2582.2,0.38731]
[1727739760091,3.2078,2582.8,2582.6,0.38725]
[1727739760396,3.2078,2582.8,2582.2,3.2078]
[1727739760592,3.2078,2582.8,2582.6,0.38726]
[1727739760893,3.35,2582.7,2582.3,0.3873]
[1727739761193,3.73725,2582.7,2582.2,0.38732]
[1727739761493,3.35,2582.7,2581.9,3.2078]
[1727739761682,3.59508,2582.5,2582.0,0.38734]
[1727739761890,3.7407,2582.4,2582.0,0.38735]
[1727739762084,3.7407,2582.4,2582.3,0.3873]
[1727739762085,4.1362,2582.4,2582.3,0.3873]
[1727739762389,3.2078,2583.0,2582.4,0.38728]
[1727739762390,3.35,2582.7,2582.4,0.38728]
[1727739762593,3.35,2582.7,2582.2,3.2078]
[1727739762798,3.35,2582.7,2582.4,0.38728]
[1727739763093,3.35,2582.7,2582.3,0.38729]
[1727739763293,3.35,2582.7,2582.4,0.38728]
[1727739763597,3.35,2582.7,2582.3,0.38729]
[1727739763902,3.35,2582.7,2581.9,4.17622]
[1727739764094,3.35,2582.7,2582.3,0.3873]
[1727739764288,3.35,2582.7,2582.4,0.38729]
[1727739764485,3.35,2582.7,2582.3,0.3873]
[1727739765400,6.5578,2582.7,2582.0,0.38735]
[1727739765601,6.5578,2582.7,2581.9,3.2078]
[1727739765799,6.94505,2582.7,2581.9,3.2078]
[1727739765993,6.5578,2582.7,2582.2,0.38731]
[1727739766595,6.5578,2582.7,2581.9,3.2078]
[1727739766902,6.5578,2582.7,2582.4,0.38728]
[1727739767092,3.2078,2582.7,2582.6,0.38726]
[1727739767290,3.35,2583.4,2582.6,7.0798]
[1727739767494,3.35,2583.4,2582.8,0.38722]
[1727739767495,3.2078,2583.3,2582.8,0.38722]
[1727739767899,0.366,2583.2,2582.8,0.38722]
[1727739768300,3.73719,2583.1,2582.6,3.2078]
[1727739768500,3.35,2582.8,2582.7,0.38724]
[1727739768888,3.35,2583.1,2582.7,0.38724]
[1727739769991,3.35,2583.1,2582.8,0.38722]
[1727739770195,3.35,2583.1,2582.7,0.38724]
[1727739770402,3.35,2583.1,2582.6,3.2078]
[1727739770607,3.35,2582.8,2582.5,0.38727]
[1727739770895,3.35,2582.8,2582.4,0.38728]
[1727739771205,3.35,2582.8,2582.1,0.3706]
[1727739771399,0.3767,2582.7,2582.1,0.3706]
[1727739771596,3.35,2582.5,2582.0,0.394]
[1727739771902,3.35,2582.5,2582.0,0.38734]
[1727739772500,3.35,2582.5,2581.9,3.5808]
[1727739772701,3.35,2582.2,2581.9,3.2078]
[1727739773401,0.3767,2582.1,2581.9,3.2078]
[1727739773605,0.3767,2582.1,2581.4,0.3712]
[1727739773905,3.35,2581.7,2581.3,0.38745]
[1727739774407,3.35,2581.7,2581.5,0.38742]
[1727739774597,3.35,2581.7,2581.3,0.38745]
[1727739774794,3.35,2581.7,2581.2,0.402]
[1727739774999,6.5578,2581.4,2581.0,0.38749]
[1727739775200,3.35,2581.2,2581.1,0.38748]
[1727739775398,3.35,2581.2,2581.0,0.38749]
[1727739775797,3.35,2581.2,2581.1,0.38748]
[1727739776201,3.35,2581.2,2580.8,3.2078]
[1727739776401,3.35,2581.2,2580.7,0.3896]
[1727739776703,3.35,2581.2,2580.8,0.38753]
[1727739776906,3.35,2581.2,2580.5,0.761]
[1727739777104,3.35,2581.2,2580.6,0.38755]
[1727739777411,0.7471,2581.3,2580.2,0.3854]
[1727739777412,6.5578,2580.9,2580.2,3.5932]
[1727739777600,6.5578,2580.9,2580.5,0.38757]
[1727739777800,3.35,2580.9,2580.5,0.38757]
[1727739778202,3.35,2580.9,2580.2,3.5932]
[1727739778603,3.35,2580.9,2580.5,0.38757]
[1727739779302,3.35,2580.9,2580.3,0.3876]
[1727739779501,3.35,2580.9,2580.5,0.38757]
[1727739780009,3.35,2580.9,2580.3,0.38759]
[1727739780205,3.35,2580.9,2580.3,0.3876]
[1727739780405,3.35,2580.9,2580.4,0.38758]
[1727739780711,3.35,2580.9,2580.2,3.5932]
[1727739780901,3.35,2580.9,2580.4,0.38759]
[1727739781408,3.35,2580.9,2580.2,3.2078]
[1727739781409,3.35,2580.5,2580.2,3.2078]
[1727739781610,7.2252,2580.5,2580.2,3.2078]
[1727739781812,7.2252,2580.5,2580.0,0.2]
[1727739781813,4.6432,2580.4,2580.0,0.2]
[1727739782006,3.35,2580.1,2580.0,0.2]
[1727739782412,7.226,2580.1,2580.0,0.2]
[1727739782708,7.226,2580.1,2579.1,0.7377]
[1727739782709,13.226,2580.1,2579.1,3.9455]
[1727739782908,3.35,2579.2,2578.7,0.48476936]
[1727739783211,6.5578,2578.8,2578.3,0.77566413]
[1727739783511,6.5578,2578.8,2578.0,1.31018584]
[1727739783512,3.35,2578.4,2578.0,1.31018584]
[1727739783709,3.35,2578.4,2578.1,0.38794]
[1727739783905,3.35,2578.4,2578.0,1.31018584]
[1727739783906,3.35,2578.4,2578.0,0.371]
[1727739784100,0.194,2579.4,2578.2,0.38792]
[1727739784101,3.35,2578.7,2578.2,0.38792]
[1727739784304,3.2078,2578.6,2578.0,3.5788]
[1727739784510,3.35,2578.4,2578.0,0.371]
[1727739785217,3.2078,2578.9,2578.1,3.8784]
[1727739785513,3.2078,2578.9,2578.0,0.371]
[1727739785514,3.35,2578.6,2578.0,0.371]
[1727739785702,3.35,2578.6,2578.2,3.2078]
[1727739786009,3.35,2578.9,2578.2,3.59571]
[1727739786207,3.35,2578.9,2578.1,0.38792]
[1727739786507,0.38775,2579.4,2577.4,0.38803]
[1727739786508,3.35,2578.3,2577.4,0.38803]
[1727739786712,3.35,2578.0,2577.5,3.2078]
[1727739786915,3.35,2577.7,2577.4,9.05745521]
[1727739787103,3.35,2578.0,2577.6,0.38801]
[1727739787304,3.35,2578.0,2577.5,3.2078]
[1727739787615,3.35,2578.0,2577.4,0.737]
[1727739787814,3.35,2578.0,2577.6,3.2078]
[1727739788406,3.35,2578.0,2577.6,3.59581]
[1727739788721,3.35,2578.0,2577.4,0.737]
[1727739788722,3.2078,2577.7,2577.4,0.737]
[1727739788915,3.35,2578.0,2577.4,1.12503]
[1727739788916,6.5578,2578.0,2577.4,1.12503]
[1727739789106,6.5578,2578.0,2577.4,0.737]